Workbook

Sheet Feuil1

Sheet Feuil2 (hidden)

Sheet Tableau_de_bord
A1: Département : | B1: قسم : علوم مالية و محاسبة
A2: Filière et spécialité : | B2: تخصص: محاسبة و تدقيق
A3: Président CFD : | B3: د/ فنغور عبدالسلام
A4: Membres CFD : | B4: د/ رحال علي
A5: Membres CFD : | B5: د/ يحياوي نعيمة
A6: Membres CFD : | B6: د/ عبدالصمد نجوى
A7: Membres CFD : | B7: د/ سي محمد لخضر
A8: corr
A11: Membres CFD : | B11: د/ بروال بومدين
A12: Membres CFD : | B12: د/ عيساني عامر
A13: Président du CSD : | B13: د/ خدومة الوردي
A14: Président du CSI : | B14: د/ زموري مسعود
A15: Chef du Département : | B15: د/ لوشن محمد
A16: Directeur adjoint chargé PG & RS : | B16: د/ بوعبيد ميلود
A17: Directeur de l'Institut | B17: د/ هارون الطاهر
A18: Directeur adjoint chargé des RELEX
A19: Modules 1 : | B19: مقياس 1 : محاسبة مالية معمقة
A20: Modules 2 : | B20: مقياس 2 : تدقيق محاسبي
A21: Lieu et date (Etape 1) :
A22: Lieu et date (Etape 2) : | B22: باتنة في02 نوفمبر2019

Sheet Module_1
A1: =Tableau_de_bord!B19 -> مقياس 1 : محاسبة مالية معمقة
A3: Module_1 | B3: Correction_1 | C3: Correction_2 | D3: Obs. | E3: Correction_3 | F3: Note
A4: A50 | B4: 5 | C4: 3 | D4: =IF(ABS(B4-C4)>=3,"3ème Correction"," ") ->  | F4: =IF(ABS(B4-C4)<3,AVERAGE(B4,C4),IF(SKEW(B4,C4,E4)=0,(SUM(B4,C4,E4)-MIN(B4,C4,E4))/2,IF(SKEW(B4,C4,E4)>0,(MIN(B4,C4,E4)+MEDIAN(B4,C4,E4))/2,(MAX(B4,C4,E4)+MEDIAN(B4,C4,E4))/2))) -> 4
A5: A51 | B5: 4 | C5: 4.25 | D5: =IF(ABS(B5-C5)>=3,"3ème Correction"," ") ->  | F5: =IF(ABS(B5-C5)<3,AVERAGE(B5,C5),IF(SKEW(B5,C5,E5)=0,(SUM(B5,C5,E5)-MIN(B5,C5,E5))/2,IF(SKEW(B5,C5,E5)>0,(MIN(B5,C5,E5)+MEDIAN(B5,C5,E5))/2,(MAX(B5,C5,E5)+MEDIAN(B5,C5,E5))/2))) -> 4.125
A6: A52 | B6: 3 | C6: 2.25 | F6: 2.625
A7: A53 | B7: 6.75 | C7: 4 | F7: 5.375
A8: A54 | B8: 3 | C8: 3 | F8: 3
A9: A55 | B9: 2.5 | C9: 2.25 | F9: 2.375
A10: A56 | B10: 6 | C10: 5.25 | F10: 5.625
A11: A57 | B11: 2.5 | C11: 2.5 | F11: 2.5
A12: A58 | B12: 8 | C12: 7.25 | F12: 7.625
A13: A59 | B13: 2.5 | C13: 3 | F13: 2.75
A14: A60 | B14: 1.5 | C14: 2 | F14: 1.75
A15: A61 | B15: 4.5 | C15: 4.5 | D15: =IF(ABS(B15-C15)>=3,"3ème Correction"," ") ->  | F15: 4.5
A16: A62 | B16: 2 | C16: 2.5 | F16: 2.25
A17: A63 | B17: 2.5 | C17: 3 | F17: 2.75
A18: A64 | B18: 3.25 | C18: 3 | F18: 3.125
A19: A65 | B19: 4.5 | C19: 3 | F19: 3.75
A20: A66 | B20: 2 | C20: 2 | F20: 2
A21: A67 | B21: 0.5 | C21: 3 | F21: 1.75
A22: A68 | B22: 1 | C22: 2.75 | F22: 1.875
A23: A69 | B23: 3 | C23: 4.5 | F23: 3.75
A24: A70 | B24: 1.5 | C24: 1.5 | F24: 1.5
A25: A71 | B25: 3.75 | C25: 4.25 | F25: 4
A26: A72 | B26: 6.75 | C26: 9 | F26: 7.875
A27: A73 | B27: 2 | C27: 2 | F27: 2
A28: A74 | B28: 2 | C28: 2 | F28: 2
A29: A75 | B29: 2.75 | C29: 3.5 | F29: 3.125
A30: A76 | B30: 2.5 | C30: 1 | F30: 1.75
A31: A77 | B31: 2.5 | C31: 5 | F31: 3.75
A32: A78 | B32: 2.25 | C32: 1.5 | F32: 1.875
A33: A79 | B33: 2.5 | C33: 2.5 | F33: 2.5
A34: A80 | B34: 0 | C34: 1 | F34: 0.5
A35: A81 | B35: 2 | C35: 1 | F35: 1.5
A36: A82 | B36: 2.5 | C36: 1.5 | F36: 2
A37: A83 | B37: 2 | C37: 0.5 | F37: 1.25
A38: A84 | B38: 9 | C38: 8 | F38: 8.5
A39: A85 | B39: 1.5 | C39: 1.5 | F39: 1.5
A40: A86 | B40: 1 | C40: 3 | F40: 2
A41: A87 | B41: 2 | C41: 2.5 | F41: 2.25
A42: A88 | B42: 1 | C42: 1.5 | F42: 1.25
A43: A89 | B43: 3 | C43: 1.75 | F43: 2.375
A44: A90 | B44: 0.25 | C44: 1 | F44: 0.625
A45: A91 | B45: 1.25 | C45: 1 | F45: 1.125
A46: A92 | B46: 2 | C46: 2.25 | F46: 2.125
A47: A93 | B47: 2 | C47: 2 | F47: 2

Sheet Module_2
A1: =Tableau_de_bord!B20 -> مقياس 2 : تدقيق محاسبي
A3: Module_1 | B3: Correction_1 | C3: Correction_2 | D3: Obs. | E3: Correction_3 | F3: Note
A4: B01 | B4: 6 | C4: 7.5 | D4: =IF(ABS(B4-C4)>=3,"3ème Correction"," ") ->  | F4: =IF(ABS(B4-C4)<3,AVERAGE(B4,C4),IF(SKEW(B4,C4,E4)=0,(SUM(B4,C4,E4)-MIN(B4,C4,E4))/2,IF(SKEW(B4,C4,E4)>0,(MIN(B4,C4,E4)+MEDIAN(B4,C4,E4))/2,(MAX(B4,C4,E4)+MEDIAN(B4,C4,E4))/2))) -> 6.75
A5: B02 | B5: 10 | C5: 9 | D5: =IF(ABS(B5-C5)>=3,"3ème Correction"," ") ->  | F5: 9.5
A6: B03 | B6: 2.5 | C6: 10 | D6: 3ème Correction | E6: 7.75 | F6: 8.875
A7: B04 | B7: 2.5 | C7: 5.5 | D7: 3ème Correction | E7: 2.75 | F7: 2.625
A8: B05 | B8: 5.5 | C8: 8.5 | D8: 3ème Correction | E8: 5 | F8: 5.25
A9: B06 | B9: 8 | C9: 9 | F9: 8.5
A10: B07 | B10: 3.5 | C10: 6.5 | D10: 3ème Correction | E10: 4 | F10: 3.75
A11: B08 | B11: 10 | C11: 9.5 | F11: 9.75
A12: B09 | B12: 5 | C12: 8 | D12: 3ème Correction | E12: 6.25 | F12: 5.625
A13: B10 | B13: 4.5 | C13: 3 | F13: 3.75
A14: B11 | B14: 3 | C14: 1.5 | F14: 2.25
A15: B12 | B15: 6.5 | C15: 4.5 | F15: 5.5
A16: B13 | B16: 4.5 | C16: 5 | F16: 4.75
A17: B14 | B17: 7 | C17: 3 | D17: 3ème Correction | E17: 3 | F17: 3
A18: B15 | B18: 8 | C18: 3 | D18: 3ème Correction | E18: 6 | F18: 7
A19: B16 | B19: 3.5 | C19: 1.75 | F19: 2.625
A20: B17 | B20: 0.5 | C20: 2 | F20: 1.25
A21: B18 | B21: 5.25 | C21: 5 | F21: 5.125
A22: B19 | B22: 4 | C22: 10.5 | D22: 3ème Correction | E22: 10.5 | F22: 10.5
A23: B20 | B23: 2 | C23: 4 | F23: 3
A24: B21 | B24: 4.75 | C24: 6 | F24: 5.375
A25: B22 | B25: 5.75 | C25: 2 | D25: 3ème Correction | E25: 4 | F25: 4.875
A26: B23 | B26: 3.5 | C26: 2.5 | F26: 3
A27: B24 | B27: 8 | C27: 6.5 | F27: 7.25
A28: B25 | B28: 6.5 | C28: 5.5 | F28: 6
A29: B26 | B29: 5.75 | C29: 4 | F29: 4.875
A30: B27 | B30: 6.25 | C30: 2.75 | D30: 3ème Correction | E30: 5 | F30: 5.625
A31: B28 | B31: 10.75 | C31: 7.5 | D31: 3ème Correction | E31: 8.5 | F31: 8
A32: B29 | B32: 7 | C32: 6 | F32: 6.5
A33: B30 | B33: 7.5 | C33: 5.5 | F33: 6.5
A34: B31
A35: B32 | B35: 4 | C35: 2.25 | F35: 3.125
A36: B33 | B36: 6.25 | C36: 5 | F36: 5.625
A37: B34 | B37: 4.5 | C37: 3 | F37: 3.75
A38: B35 | B38: 6.5 | C38: 5 | F38: 5.75
A39: B36 | B39: 9.25 | C39: 8.5 | F39: 8.875
A40: B37 | B40: 7.5 | C40: 10 | F40: 8.75
A41: B38 | B41: 9 | C41: 7 | F41: 8
A42: B39 | B42: 8.5 | C42: 6 | F42: 7.25
A43: B40 | B43: 9 | C43: 5.5 | D43: 3ème Correction | E43: 9.25 | F43: 9.125
A44: B41 | B44: 6.5 | C44: 3.5 | D44: 3ème Correction | E44: 7 | F44: 6.75
A45: B42 | B45: 5.5 | C45: 3.5 | F45: 4.5
A46: B43 | B46: 8.5 | C46: 3 | D46: 3ème Correction | E46: 6.5 | F46: 7.5
A47: B44 | B47: 9 | C47: 8 | F47: 8.5

Sheet Decodage
A1: N° | B1: Nom | C1: prénom | D1: Intitulé_Master | E1: Annexe_A_B | F1: Univ_origine | G1: Code_1 | H1: Module_1 | I1: Code_2 | J1: Module_2 | K1: Moy | L1: Pour le TRI | M1: Licence | N1: Obs.
A2: 94 | B2: FATIMA ZOHRA | C2: BOULAHBEL | G2: A58 | H2: =IF($G2="","غ",VLOOKUP($G2,Module_1!$A$4:$F$47,6)) -> 7.625 | I2: B40 | J2: =IF($I2="","غ",VLOOKUP($I2,Module_2!$A$4:$F$47,6)) -> 9.125 | K2: =IF(OR(H2="غ",J2="غ"),"غ",(H2+J2*3)/4) -> 8.75 | L2: =IF($K2="غ",0,$K2) -> 8.75 | N2: ناجح (ة)
A3: 67 | B3: labbaz | C3: mabrouk | G3: A75 | H3: =IF($G3="","غ",VLOOKUP($G3,Module_1!$A$4:$F$47,6)) -> 3.125 | I3: B19 | J3: =IF($I3="","غ",VLOOKUP($I3,Module_2!$A$4:$F$47,6)) -> 10.5 | K3: 8.65625 | L3: 8.65625 | N3: ناجح (ة)
A4: 61 | B4: ben azouaou | C4: leila | G4: A61 | H4: =IF($G4="","غ",VLOOKUP($G4,Module_1!$A$4:$F$47,6)) -> 4.5 | I4: B02 | J4: =IF($I4="","غ",VLOOKUP($I4,Module_2!$A$4:$F$47,6)) -> 9.5 | K4: 8.25 | L4: 8.25 | N4: ناجح (ة)
A5: 6 | B5: Berchi | C5: Nardjes | G5: A87 | H5: =IF($G5="","غ",VLOOKUP($G5,Module_1!$A$4:$F$47,6)) -> 2.25 | I5: B08 | J5: =IF($I5="","غ",VLOOKUP($I5,Module_2!$A$4:$F$47,6)) -> 9.75 | K5: 7.875 | L5: 7.875 | N5: راسب(ة)
A6: 14 | B6: salaouda | C6: khaled | G6: A53 | H6: =IF($G6="","غ",VLOOKUP($G6,Module_1!$A$4:$F$47,6)) -> 5.375 | I6: B06 | J6: =IF($I6="","غ",VLOOKUP($I6,Module_2!$A$4:$F$47,6)) -> 8.5 | K6: 7.71875 | L6: 7.71875 | N6: راسب(ة)
A7: 86 | B7: saidi | C7: sabah | G7: A51 | H7: =IF($G7="","غ",VLOOKUP($G7,Module_1!$A$4:$F$47,6)) -> 4.125 | I7: B03 | J7: =IF($I7="","غ",VLOOKUP($I7,Module_2!$A$4:$F$47,6)) -> 8.875 | K7: 7.6875 | L7: 7.6875 | N7: راسب(ة)
A8: 76 | B8: boultiah | C8: salima | G8: A64 | H8: =IF($G8="","غ",VLOOKUP($G8,Module_1!$A$4:$F$47,6)) -> 3.125 | I8: B36 | J8: =IF($I8="","غ",VLOOKUP($I8,Module_2!$A$4:$F$47,6)) -> 8.875 | K8: 7.4375 | L8: 7.4375 | N8: راسب(ة)
A9: 35 | B9: djemmal | C9: hamza oulid | G9: A89 | H9: =IF($G9="","غ",VLOOKUP($G9,Module_1!$A$4:$F$47,6)) -> 2.375 | I9: B37 | J9: =IF($I9="","غ",VLOOKUP($I9,Module_2!$A$4:$F$47,6)) -> 8.75 | K9: 7.15625 | L9: 7.15625 | N9: راسب(ة)
A10: 13 | B10: TLALES | C10: Azouz | G10: A63 | H10: =IF($G10="","غ",VLOOKUP($G10,Module_1!$A$4:$F$47,6)) -> 2.75 | I10: B44 | J10: =IF($I10="","غ",VLOOKUP($I10,Module_2!$A$4:$F$47,6)) -> 8.5 | K10: 7.0625 | L10: 7.0625 | N10: راسب(ة)
A11: 53 | B11: Djaroun | C11: Sorya | G11: A56 | H11: =IF($G11="","غ",VLOOKUP($G11,Module_1!$A$4:$F$47,6)) -> 5.625 | I11: B24 | J11: =IF($I11="","غ",VLOOKUP($I11,Module_2!$A$4:$F$47,6)) -> 7.25 | K11: 6.84375 | L11: 6.84375 | N11: راسب(ة)
A12: 43 | B12: bouzidi | C12: abdelwahab | G12: A86 | H12: =IF($G12="","غ",VLOOKUP($G12,Module_1!$A$4:$F$47,6)) -> 2 | I12: B38 | J12: =IF($I12="","غ",VLOOKUP($I12,Module_2!$A$4:$F$47,6)) -> 8 | K12: 6.5 | L12: 6.5 | N12: راسب(ة)
A13: 19 | B13: Guidoum | C13: Aicha | G13: A93 | H13: =IF($G13="","غ",VLOOKUP($G13,Module_1!$A$4:$F$47,6)) -> 2 | I13: B28 | J13: =IF($I13="","غ",VLOOKUP($I13,Module_2!$A$4:$F$47,6)) -> 8 | K13: 6.5 | L13: 6.5 | N13: راسب(ة)
A14: 45 | B14: ABIDI | C14: IBTISSEM | G14: A84 | H14: =IF($G14="","غ",VLOOKUP($G14,Module_1!$A$4:$F$47,6)) -> 8.5 | I14: B09 | J14: =IF($I14="","غ",VLOOKUP($I14,Module_2!$A$4:$F$47,6)) -> 5.625 | K14: 6.34375 | L14: 6.34375 | N14: راسب(ة)
A15: 51 | B15: DERRADJI | C15: AMEL NOUR EL HOUDA | G15: A66 | H15: =IF($G15="","غ",VLOOKUP($G15,Module_1!$A$4:$F$47,6)) -> 2 | I15: B43 | J15: =IF($I15="","غ",VLOOKUP($I15,Module_2!$A$4:$F$47,6)) -> 7.5 | K15: 6.125 | L15: 6.125 | N15: راسب(ة)
A16: 60 | B16: Sadoun | C16: Moussa | G16: A59 | H16: =IF($G16="","غ",VLOOKUP($G16,Module_1!$A$4:$F$47,6)) -> 2.75 | I16: B39 | J16: =IF($I16="","غ",VLOOKUP($I16,Module_2!$A$4:$F$47,6)) -> 7.25 | K16: 6.125 | L16: 6.125 | N16: راسب(ة)
A17: 33 | B17: guerziz | C17: meriem | G17: A72 | H17: =IF($G17="","غ",VLOOKUP($G17,Module_1!$A$4:$F$47,6)) -> 7.875 | I17: B21 | J17: =IF($I17="","غ",VLOOKUP($I17,Module_2!$A$4:$F$47,6)) -> 5.375 | K17: 6 | L17: 6 | N17: راسب(ة)
A18: 31 | B18: ARIOUA | C18: MOHAMED | G18: A92 | H18: =IF($G18="","غ",VLOOKUP($G18,Module_1!$A$4:$F$47,6)) -> 2.125 | I18: B15 | J18: =IF($I18="","غ",VLOOKUP($I18,Module_2!$A$4:$F$47,6)) -> 7 | K18: 5.78125 | L18: 5.78125 | N18: راسب(ة)
A19: 92 | B19: TALEB | C19: ISSAM | G19: A55 | H19: =IF($G19="","غ",VLOOKUP($G19,Module_1!$A$4:$F$47,6)) -> 2.375 | I19: B01 | J19: =IF($I19="","غ",VLOOKUP($I19,Module_2!$A$4:$F$47,6)) -> 6.75 | K19: 5.65625 | L19: 5.65625 | N19: راسب(ة)
A20: 73 | B20: LITIM | C20: IKRAM | G20: A62 | H20: =IF($G20="","غ",VLOOKUP($G20,Module_1!$A$4:$F$47,6)) -> 2.25 | I20: B41 | J20: =IF($I20="","غ",VLOOKUP($I20,Module_2!$A$4:$F$47,6)) -> 6.75 | K20: 5.625 | L20: 5.625 | N20: راسب(ة)
A21: 5 | B21: bouchouk | C21: noura | G21: A73 | H21: =IF($G21="","غ",VLOOKUP($G21,Module_1!$A$4:$F$47,6)) -> 2 | I21: B30 | J21: =IF($I21="","غ",VLOOKUP($I21,Module_2!$A$4:$F$47,6)) -> 6.5 | K21: 5.375 | L21: 5.375 | N21: راسب(ة)
A22: 58 | B22: guemida | C22: assia | G22: A60 | H22: =IF($G22="","غ",VLOOKUP($G22,Module_1!$A$4:$F$47,6)) -> 1.75 | I22: B29 | J22: =IF($I22="","غ",VLOOKUP($I22,Module_2!$A$4:$F$47,6)) -> 6.5 | K22: 5.3125 | L22: 5.3125 | N22: راسب(ة)
A23: 38 | B23: guerfi | C23: ilyes | G23: A50 | H23: =IF($G23="","غ",VLOOKUP($G23,Module_1!$A$4:$F$47,6)) -> 4 | I23: B35 | J23: =IF($I23="","غ",VLOOKUP($I23,Module_2!$A$4:$F$47,6)) -> 5.75 | K23: 5.3125 | L23: 5.3125 | N23: راسب(ة)
A24: 10 | B24: meddour | C24: imen | G24: A71 | H24: =IF($G24="","غ",VLOOKUP($G24,Module_1!$A$4:$F$47,6)) -> 4 | I24: B27 | J24: =IF($I24="","غ",VLOOKUP($I24,Module_2!$A$4:$F$47,6)) -> 5.625 | K24: 5.21875 | L24: 5.21875 | N24: راسب(ة)
A25: 78 | B25: YAHIAOUI | C25: Asma | G25: A79 | H25: =IF($G25="","غ",VLOOKUP($G25,Module_1!$A$4:$F$47,6)) -> 2.5 | I25: B25 | J25: =IF($I25="","غ",VLOOKUP($I25,Module_2!$A$4:$F$47,6)) -> 6 | K25: 5.125 | L25: 5.125 | N25: راسب(ة)
A26: 37 | B26: bouaziz | C26: mouldia | G26: A77 | H26: =IF($G26="","غ",VLOOKUP($G26,Module_1!$A$4:$F$47,6)) -> 3.75 | I26: B05 | J26: =IF($I26="","غ",VLOOKUP($I26,Module_2!$A$4:$F$47,6)) -> 5.25 | K26: 4.875 | L26: 4.875 | N26: راسب(ة)
A27: 77 | B27: bassaid | C27: hafied | G27: A74 | H27: =IF($G27="","غ",VLOOKUP($G27,Module_1!$A$4:$F$47,6)) -> 2 | I27: B12 | J27: =IF($I27="","غ",VLOOKUP($I27,Module_2!$A$4:$F$47,6)) -> 5.5 | K27: 4.625 | L27: 4.625 | N27: راسب(ة)
A28: 95 | B28: AROUL | C28: Turkia | G28: A90 | H28: =IF($G28="","غ",VLOOKUP($G28,Module_1!$A$4:$F$47,6)) -> 0.625 | I28: B33 | J28: =IF($I28="","غ",VLOOKUP($I28,Module_2!$A$4:$F$47,6)) -> 5.625 | K28: 4.375 | L28: 4.375 | N28: راسب(ة)
A29: 88 | B29: saadi | C29: kenza | G29: A65 | H29: =IF($G29="","غ",VLOOKUP($G29,Module_1!$A$4:$F$47,6)) -> 3.75 | I29: B42 | J29: =IF($I29="","غ",VLOOKUP($I29,Module_2!$A$4:$F$47,6)) -> 4.5 | K29: 4.3125 | L29: 4.3125 | N29: راسب(ة)
A30: 91 | B30: Bellakh | C30: Sihem | G30: A67 | H30: =IF($G30="","غ",VLOOKUP($G30,Module_1!$A$4:$F$47,6)) -> 1.75 | I30: B18 | J30: =IF($I30="","غ",VLOOKUP($I30,Module_2!$A$4:$F$47,6)) -> 5.125 | K30: 4.28125 | L30: 4.28125 | N30: راسب(ة)
A31: 27 | B31: zeyneb | C31: tamrabet | G31: A68 | H31: =IF($G31="","غ",VLOOKUP($G31,Module_1!$A$4:$F$47,6)) -> 1.875 | I31: B26 | J31: =IF($I31="","غ",VLOOKUP($I31,Module_2!$A$4:$F$47,6)) -> 4.875 | K31: 4.125 | L31: 4.125 | N31: راسب(ة)
A32: 57 | B32: kebab | C32: ghania | G32: A85 | H32: =IF($G32="","غ",VLOOKUP($G32,Module_1!$A$4:$F$47,6)) -> 1.5 | I32: B22 | J32: =IF($I32="","غ",VLOOKUP($I32,Module_2!$A$4:$F$47,6)) -> 4.875 | K32: 4.03125 | L32: 4.03125 | N32: راسب(ة)
A33: 72 | B33: maalem | C33: abir | G33: A88 | H33: =IF($G33="","غ",VLOOKUP($G33,Module_1!$A$4:$F$47,6)) -> 1.25 | I33: B13 | J33: =IF($I33="","غ",VLOOKUP($I33,Module_2!$A$4:$F$47,6)) -> 4.75 | K33: 3.875 | L33: 3.875 | N33: راسب(ة)
A34: 71 | B34: djelal | C34: lamis | G34: A69 | H34: =IF($G34="","غ",VLOOKUP($G34,Module_1!$A$4:$F$47,6)) -> 3.75 | I34: B10 | J34: =IF($I34="","غ",VLOOKUP($I34,Module_2!$A$4:$F$47,6)) -> 3.75 | K34: =IF(OR(H34="غ",J34="غ"),"غ",(H34+J34*3)/4) -> 3.75 | L34: =IF($K34="غ",0,$K34) -> 3.75 | N34: راسب(ة)
A35: 42 | B35: DERDOUBA | C35: ABDELHAK | G35: A52 | H35: =IF($G35="","غ",VLOOKUP($G35,Module_1!$A$4:$F$47,6)) -> 2.625 | I35: B07 | J35: =IF($I35="","غ",VLOOKUP($I35,Module_2!$A$4:$F$47,6)) -> 3.75 | K35: 3.46875 | L35: 3.46875 | N35: راسب(ة)
A36: 84 | B36: bouradi | C36: maroua | G36: A78 | H36: =IF($G36="","غ",VLOOKUP($G36,Module_1!$A$4:$F$47,6)) -> 1.875 | I36: B34 | J36: =IF($I36="","غ",VLOOKUP($I36,Module_2!$A$4:$F$47,6)) -> 3.75 | K36: 3.28125 | L36: 3.28125 | N36: راسب(ة)
A37: 9 | B37: ATHAMNIA | C37: Abd El Azize | G37: A57 | H37: =IF($G37="","غ",VLOOKUP($G37,Module_1!$A$4:$F$47,6)) -> 2.5 | I37: B23 | J37: =IF($I37="","غ",VLOOKUP($I37,Module_2!$A$4:$F$47,6)) -> 3 | K37: 2.875 | L37: 2.875 | N37: راسب(ة)
A38: 80 | B38: BEKIRI | C38: HADJER | G38: A54 | H38: =IF($G38="","غ",VLOOKUP($G38,Module_1!$A$4:$F$47,6)) -> 3 | I38: B04 | J38: =IF($I38="","غ",VLOOKUP($I38,Module_2!$A$4:$F$47,6)) -> 2.625 | K38: 2.71875 | L38: 2.71875 | N38: راسب(ة)
A39: 81 | B39: BENABBES | C39: RAYENE | G39: A91 | H39: =IF($G39="","غ",VLOOKUP($G39,Module_1!$A$4:$F$47,6)) -> 1.125 | I39: B32 | J39: =IF($I39="","غ",VLOOKUP($I39,Module_2!$A$4:$F$47,6)) -> 3.125 | K39: 2.625 | L39: 2.625 | N39: راسب(ة)
A40: 55 | B40: BOUDJELAL | C40: MOUNA | G40: A70 | H40: =IF($G40="","غ",VLOOKUP($G40,Module_1!$A$4:$F$47,6)) -> 1.5 | I40: B14 | J40: =IF($I40="","غ",VLOOKUP($I40,Module_2!$A$4:$F$47,6)) -> 3 | K40: 2.625 | L40: 2.625 | N40: راسب(ة)
A41: 18 | B41: kharfallah cherif | C41: naima | G41: A81 | H41: =IF($G41="","غ",VLOOKUP($G41,Module_1!$A$4:$F$47,6)) -> 1.5 | I41: B20 | J41: =IF($I41="","غ",VLOOKUP($I41,Module_2!$A$4:$F$47,6)) -> 3 | K41: 2.625 | L41: 2.625 | N41: راسب(ة)
A42: 32 | B42: bedda | C42: rokn eddine | G42: A82 | H42: =IF($G42="","غ",VLOOKUP($G42,Module_1!$A$4:$F$47,6)) -> 2 | I42: B16 | J42: =IF($I42="","غ",VLOOKUP($I42,Module_2!$A$4:$F$47,6)) -> 2.625 | K42: 2.46875 | L42: 2.46875 | N42: راسب(ة)
A43: 39 | B43: BOUTAMAMINE | C43: MEBARKA | G43: A83 | H43: =IF($G43="","غ",VLOOKUP($G43,Module_1!$A$4:$F$47,6)) -> 1.25 | I43: B11 | J43: =IF($I43="","غ",VLOOKUP($I43,Module_2!$A$4:$F$47,6)) -> 2.25 | K43: 2 | L43: 2 | N43: راسب(ة)
A44: 12 | B44: touatit | C44: nesma | G44: A80 | H44: =IF($G44="","غ",VLOOKUP($G44,Module_1!$A$4:$F$47,6)) -> 0.5 | I44: B17 | J44: =IF($I44="","غ",VLOOKUP($I44,Module_2!$A$4:$F$47,6)) -> 1.25 | K44: 1.0625 | L44: 1.0625 | N44: راسب(ة)
A45: 16 | B45: adjmi | C45: zineb | H45: =IF($G45="","غ",VLOOKUP($G45,Module_1!$A$4:$F$47,6)) -> غ | J45: =IF($I45="","غ",VLOOKUP($I45,Module_2!$A$4:$F$47,6)) -> غ | K45: غ | L45: 0 | N45: راسب(ة)
A46: 83 | B46: ARAB | C46: Amira | H46: =IF($G46="","غ",VLOOKUP($G46,Module_1!$A$4:$F$47,6)) -> غ | J46: =IF($I46="","غ",VLOOKUP($I46,Module_2!$A$4:$F$47,6)) -> غ | K46: غ | L46: 0 | N46: راسب(ة)
A47: 49 | B47: ATTALLAH | C47: YAKOUB | H47: =IF($G47="","غ",VLOOKUP($G47,Module_1!$A$4:$F$47,6)) -> غ | J47: =IF($I47="","غ",VLOOKUP($I47,Module_2!$A$4:$F$47,6)) -> غ | K47: غ | L47: 0 | N47: راسب(ة)
A48: 90 | B48: Bech | C48: Abderrahmane | H48: =IF($G48="","غ",VLOOKUP($G48,Module_1!$A$4:$F$47,6)) -> غ | J48: =IF($I48="","غ",VLOOKUP($I48,Module_2!$A$4:$F$47,6)) -> غ | K48: غ | L48: 0 | N48: راسب(ة)
A49: 85 | B49: Belkacemi | C49: Mounira | H49: =IF($G49="","غ",VLOOKUP($G49,Module_1!$A$4:$F$47,6)) -> غ | J49: =IF($I49="","غ",VLOOKUP($I49,Module_2!$A$4:$F$47,6)) -> غ | K49: غ | L49: 0 | N49: راسب(ة)
A50: 28 | B50: belkhiri | C50: aida | H50: =IF($G50="","غ",VLOOKUP($G50,Module_1!$A$4:$F$47,6)) -> غ | J50: =IF($I50="","غ",VLOOKUP($I50,Module_2!$A$4:$F$47,6)) -> غ | K50: غ | L50: 0 | N50: راسب(ة)
A51: 30 | B51: belloum | C51: imene | H51: =IF($G51="","غ",VLOOKUP($G51,Module_1!$A$4:$F$47,6)) -> غ | J51: =IF($I51="","غ",VLOOKUP($I51,Module_2!$A$4:$F$47,6)) -> غ | K51: غ | L51: 0 | N51: راسب(ة)
A52: 65 | B52: Belloum | C52: Nadir | H52: =IF($G52="","غ",VLOOKUP($G52,Module_1!$A$4:$F$47,6)) -> غ | J52: =IF($I52="","غ",VLOOKUP($I52,Module_2!$A$4:$F$47,6)) -> غ | K52: غ | L52: 0 | N52: راسب(ة)
A53: 70 | B53: BENKORICHI | C53: ZAKARIA | H53: =IF($G53="","غ",VLOOKUP($G53,Module_1!$A$4:$F$47,6)) -> غ | J53: =IF($I53="","غ",VLOOKUP($I53,Module_2!$A$4:$F$47,6)) -> غ | K53: غ | L53: 0 | N53: راسب(ة)
A54: 34 | B54: BENTALLAH | C54: Athmane | H54: =IF($G54="","غ",VLOOKUP($G54,Module_1!$A$4:$F$47,6)) -> غ | J54: =IF($I54="","غ",VLOOKUP($I54,Module_2!$A$4:$F$47,6)) -> غ | K54: غ | L54: 0 | N54: راسب(ة)
A55: 40 | B55: Boubaya | C55: Nassira | H55: =IF($G55="","غ",VLOOKUP($G55,Module_1!$A$4:$F$47,6)) -> غ | J55: =IF($I55="","غ",VLOOKUP($I55,Module_2!$A$4:$F$47,6)) -> غ | K55: غ | L55: 0 | N55: راسب(ة)
A56: 93 | B56: bouchama | C56: sadek | H56: =IF($G56="","غ",VLOOKUP($G56,Module_1!$A$4:$F$47,6)) -> غ | J56: =IF($I56="","غ",VLOOKUP($I56,Module_2!$A$4:$F$47,6)) -> غ | K56: غ | L56: 0 | N56: راسب(ة)
A57: 44 | B57: BOUZEKRI | C57: SADEK | H57: =IF($G57="","غ",VLOOKUP($G57,Module_1!$A$4:$F$47,6)) -> غ | J57: =IF($I57="","غ",VLOOKUP($I57,Module_2!$A$4:$F$47,6)) -> غ | K57: غ | L57: 0 | N57: راسب(ة)
A58: 75 | B58: CHABANI | C58: MEHDI | H58: =IF($G58="","غ",VLOOKUP($G58,Module_1!$A$4:$F$47,6)) -> غ | J58: =IF($I58="","غ",VLOOKUP($I58,Module_2!$A$4:$F$47,6)) -> غ | K58: غ | L58: 0 | N58: راسب(ة)
A59: 68 | B59: chebili | C59: khalissa | H59: =IF($G59="","غ",VLOOKUP($G59,Module_1!$A$4:$F$47,6)) -> غ | J59: =IF($I59="","غ",VLOOKUP($I59,Module_2!$A$4:$F$47,6)) -> غ | K59: غ | L59: 0 | N59: راسب(ة)
A60: 17 | B60: chekhab | C60: sara | G60: A76 | H60: =IF($G60="","غ",VLOOKUP($G60,Module_1!$A$4:$F$47,6)) -> 1.75 | J60: =IF($I60="","غ",VLOOKUP($I60,Module_2!$A$4:$F$47,6)) -> غ | K60: غ | L60: 0 | N60: راسب(ة)
A61: 69 | B61: cheriti | C61: ines lilia | H61: =IF($G61="","غ",VLOOKUP($G61,Module_1!$A$4:$F$47,6)) -> غ | J61: =IF($I61="","غ",VLOOKUP($I61,Module_2!$A$4:$F$47,6)) -> غ | K61: غ | L61: 0 | N61: راسب(ة)
A62: 29 | B62: DJEBAILI | C62: Nadhira | H62: =IF($G62="","غ",VLOOKUP($G62,Module_1!$A$4:$F$47,6)) -> غ | J62: =IF($I62="","غ",VLOOKUP($I62,Module_2!$A$4:$F$47,6)) -> غ | K62: غ | L62: 0 | N62: راسب(ة)
A63: 8 | B63: djefaflia | C63: roumaissa | H63: =IF($G63="","غ",VLOOKUP($G63,Module_1!$A$4:$F$47,6)) -> غ | J63: =IF($I63="","غ",VLOOKUP($I63,Module_2!$A$4:$F$47,6)) -> غ | K63: غ | L63: 0 | N63: راسب(ة)
A64: 66 | B64: FILALI | C64: HAMZA | H64: =IF($G64="","غ",VLOOKUP($G64,Module_1!$A$4:$F$47,6)) -> غ | J64: =IF($I64="","غ",VLOOKUP($I64,Module_2!$A$4:$F$47,6)) -> غ | K64: غ | L64: 0 | N64: راسب(ة)
A65: 62 | B65: GHERIB | C65: HANANE | H65: =IF($G65="","غ",VLOOKUP($G65,Module_1!$A$4:$F$47,6)) -> غ | J65: =IF($I65="","غ",VLOOKUP($I65,Module_2!$A$4:$F$47,6)) -> غ | K65: غ | L65: 0 | N65: راسب(ة)
A66: 82 | B66: GRINI | C66: AMEL | H66: =IF($G66="","غ",VLOOKUP($G66,Module_1!$A$4:$F$47,6)) -> غ | J66: =IF($I66="","غ",VLOOKUP($I66,Module_2!$A$4:$F$47,6)) -> غ | K66: =IF(OR(H66="غ",J66="غ"),"غ",(H66+J66*3)/4) -> غ | L66: =IF($K66="غ",0,$K66) -> 0 | N66: راسب(ة)
A67: 63 | B67: khamra | C67: hocine | H67: =IF($G67="","غ",VLOOKUP($G67,Module_1!$A$4:$F$47,6)) -> غ | J67: =IF($I67="","غ",VLOOKUP($I67,Module_2!$A$4:$F$47,6)) -> غ | K67: غ | L67: 0 | N67: راسب(ة)
A68: 52 | B68: lagraa | C68: nesrine | H68: =IF($G68="","غ",VLOOKUP($G68,Module_1!$A$4:$F$47,6)) -> غ | J68: =IF($I68="","غ",VLOOKUP($I68,Module_2!$A$4:$F$47,6)) -> غ | K68: غ | L68: 0 | N68: راسب(ة)
A69: 20 | B69: Lahmadi | C69: Akram | H69: =IF($G69="","غ",VLOOKUP($G69,Module_1!$A$4:$F$47,6)) -> غ | J69: =IF($I69="","غ",VLOOKUP($I69,Module_2!$A$4:$F$47,6)) -> غ | K69: غ | L69: 0 | N69: راسب(ة)
A70: 56 | B70: LATTOUI | C70: Hakim | H70: =IF($G70="","غ",VLOOKUP($G70,Module_1!$A$4:$F$47,6)) -> غ | J70: =IF($I70="","غ",VLOOKUP($I70,Module_2!$A$4:$F$47,6)) -> غ | K70: غ | L70: 0 | N70: راسب(ة)
A71: 59 | B71: MAALLA | C71: HANANE | H71: =IF($G71="","غ",VLOOKUP($G71,Module_1!$A$4:$F$47,6)) -> غ | J71: =IF($I71="","غ",VLOOKUP($I71,Module_2!$A$4:$F$47,6)) -> غ | K71: غ | L71: 0 | N71: راسب(ة)
A72: 54 | B72: mahdid | C72: aziez | H72: =IF($G72="","غ",VLOOKUP($G72,Module_1!$A$4:$F$47,6)) -> غ | J72: =IF($I72="","غ",VLOOKUP($I72,Module_2!$A$4:$F$47,6)) -> غ | K72: غ | L72: 0 | N72: راسب(ة)
A73: 87 | B73: Mahmel | C73: Hassiba | H73: =IF($G73="","غ",VLOOKUP($G73,Module_1!$A$4:$F$47,6)) -> غ | J73: =IF($I73="","غ",VLOOKUP($I73,Module_2!$A$4:$F$47,6)) -> غ | K73: غ | L73: 0 | N73: راسب(ة)
A74: 41 | B74: MELIZI | C74: HASNA | H74: =IF($G74="","غ",VLOOKUP($G74,Module_1!$A$4:$F$47,6)) -> غ | J74: =IF($I74="","غ",VLOOKUP($I74,Module_2!$A$4:$F$47,6)) -> غ | K74: غ | L74: 0 | N74: راسب(ة)
A75: 74 | B75: mestour | C75: nadjet | H75: =IF($G75="","غ",VLOOKUP($G75,Module_1!$A$4:$F$47,6)) -> غ | J75: =IF($I75="","غ",VLOOKUP($I75,Module_2!$A$4:$F$47,6)) -> غ | K75: غ | L75: 0 | N75: راسب(ة)
A76: 89 | B76: midoune | C76: nihad | H76: =IF($G76="","غ",VLOOKUP($G76,Module_1!$A$4:$F$47,6)) -> غ | J76: =IF($I76="","غ",VLOOKUP($I76,Module_2!$A$4:$F$47,6)) -> غ | K76: غ | L76: 0 | N76: راسب(ة)
A77: 24 | B77: OMRANE | C77: SOUMIA | H77: =IF($G77="","غ",VLOOKUP($G77,Module_1!$A$4:$F$47,6)) -> غ | J77: =IF($I77="","غ",VLOOKUP($I77,Module_2!$A$4:$F$47,6)) -> غ | K77: غ | L77: 0 | N77: راسب(ة)
A78: 47 | B78: ounis | C78: dellel | H78: =IF($G78="","غ",VLOOKUP($G78,Module_1!$A$4:$F$47,6)) -> غ | J78: =IF($I78="","غ",VLOOKUP($I78,Module_2!$A$4:$F$47,6)) -> غ | K78: غ | L78: 0 | N78: راسب(ة)
A79: 79 | B79: RAHAL | C79: ISMAHAN | H79: =IF($G79="","غ",VLOOKUP($G79,Module_1!$A$4:$F$47,6)) -> غ | J79: =IF($I79="","غ",VLOOKUP($I79,Module_2!$A$4:$F$47,6)) -> غ | K79: غ | L79: 0 | N79: راسب(ة)
A80: 64 | B80: RAHIM | C80: Imene | H80: =IF($G80="","غ",VLOOKUP($G80,Module_1!$A$4:$F$47,6)) -> غ | J80: =IF($I80="","غ",VLOOKUP($I80,Module_2!$A$4:$F$47,6)) -> غ | K80: غ | L80: 0 | N80: راسب(ة)
A81: 23 | B81: saoud | C81: imene | H81: =IF($G81="","غ",VLOOKUP($G81,Module_1!$A$4:$F$47,6)) -> غ | J81: =IF($I81="","غ",VLOOKUP($I81,Module_2!$A$4:$F$47,6)) -> غ | K81: غ | L81: 0 | N81: راسب(ة)
A82: 36 | B82: Souilah | C82: Oumeima | H82: =IF($G82="","غ",VLOOKUP($G82,Module_1!$A$4:$F$47,6)) -> غ | J82: =IF($I82="","غ",VLOOKUP($I82,Module_2!$A$4:$F$47,6)) -> غ | K82: غ | L82: 0 | N82: راسب(ة)
A83: 48 | B83: TEDJANIA | C83: HAMZA | H83: =IF($G83="","غ",VLOOKUP($G83,Module_1!$A$4:$F$47,6)) -> غ | J83: =IF($I83="","غ",VLOOKUP($I83,Module_2!$A$4:$F$47,6)) -> غ | K83: غ | L83: 0 | N83: راسب(ة)
A84: 46 | B84: ZENNOUR | C84: Abdelaziz | H84: =IF($G84="","غ",VLOOKUP($G84,Module_1!$A$4:$F$47,6)) -> غ | J84: =IF($I84="","غ",VLOOKUP($I84,Module_2!$A$4:$F$47,6)) -> غ | K84: غ | L84: 0 | N84: راسب(ة)
A85: 50 | B85: ZIANE | C85: FATEH | H85: =IF($G85="","غ",VLOOKUP($G85,Module_1!$A$4:$F$47,6)) -> غ | J85: =IF($I85="","غ",VLOOKUP($I85,Module_2!$A$4:$F$47,6)) -> غ | K85: غ | L85: 0 | N85: راسب(ة)
A86: 96 | H86: =IF($G86="","غ",VLOOKUP($G86,Module_1!$A$4:$F$47,6)) -> غ | J86: =IF($I86="","غ",VLOOKUP($I86,Module_2!$A$4:$F$47,6)) -> غ | K86: غ | L86: 0 | N86: راسب(ة)
A87: 97 | H87: =IF($G87="","غ",VLOOKUP($G87,Module_1!$A$4:$F$47,6)) -> غ | J87: =IF($I87="","غ",VLOOKUP($I87,Module_2!$A$4:$F$47,6)) -> غ | K87: غ | L87: 0 | N87: راسب(ة)
A88: 98 | H88: =IF($G88="","غ",VLOOKUP($G88,Module_1!$A$4:$F$47,6)) -> غ | J88: =IF($I88="","غ",VLOOKUP($I88,Module_2!$A$4:$F$47,6)) -> غ | K88: غ | L88: 0 | N88: راسب(ة)
A89: 99 | H89: =IF($G89="","غ",VLOOKUP($G89,Module_1!$A$4:$F$47,6)) -> غ | J89: =IF($I89="","غ",VLOOKUP($I89,Module_2!$A$4:$F$47,6)) -> غ | K89: غ | L89: 0 | N89: راسب(ة)
A90: 100 | H90: =IF($G90="","غ",VLOOKUP($G90,Module_1!$A$4:$F$47,6)) -> غ | J90: =IF($I90="","غ",VLOOKUP($I90,Module_2!$A$4:$F$47,6)) -> غ | K90: غ | L90: 0 | N90: راسب(ة)
H91: =IF($G91="","غ",VLOOKUP($G91,Module_1!$A$4:$F$47,6)) -> غ | J91: =IF($I91="","غ",VLOOKUP($I91,Module_2!$A$4:$F$47,6)) -> غ | K91: غ | L91: 0 | N91: راسب(ة)
A92: 26 | H92: =IF($G92="","غ",VLOOKUP($G92,Module_1!$A$4:$F$47,6)) -> غ | J92: =IF($I92="","غ",VLOOKUP($I92,Module_2!$A$4:$F$47,6)) -> غ | K92: غ | L92: 0 | N92: راسب(ة)
A93: 4 | H93: =IF($G93="","غ",VLOOKUP($G93,Module_1!$A$4:$F$47,6)) -> غ | J93: =IF($I93="","غ",VLOOKUP($I93,Module_2!$A$4:$F$47,6)) -> غ | K93: غ | L93: 0 | N93: راسب(ة)
A94: 3 | H94: =IF($G94="","غ",VLOOKUP($G94,Module_1!$A$4:$F$47,6)) -> غ | J94: =IF($I94="","غ",VLOOKUP($I94,Module_2!$A$4:$F$47,6)) -> غ | K94: غ | L94: 0 | N94: راسب(ة)
A95: 7 | H95: =IF($G95="","غ",VLOOKUP($G95,Module_1!$A$4:$F$47,6)) -> غ | J95: =IF($I95="","غ",VLOOKUP($I95,Module_2!$A$4:$F$47,6)) -> غ | K95: غ | L95: 0 | N95: راسب(ة)
A96: 15 | H96: =IF($G96="","غ",VLOOKUP($G96,Module_1!$A$4:$F$47,6)) -> غ | J96: =IF($I96="","غ",VLOOKUP($I96,Module_2!$A$4:$F$47,6)) -> غ | K96: غ | L96: 0 | N96: راسب(ة)
A97: 22 | H97: =IF($G97="","غ",VLOOKUP($G97,Module_1!$A$4:$F$47,6)) -> غ | J97: =IF($I97="","غ",VLOOKUP($I97,Module_2!$A$4:$F$47,6)) -> غ | K97: غ | L97: 0 | N97: راسب(ة)
A98: 21 | H98: =IF($G98="","غ",VLOOKUP($G98,Module_1!$A$4:$F$47,6)) -> غ | J98: =IF($I98="","غ",VLOOKUP($I98,Module_2!$A$4:$F$47,6)) -> غ | K98: =IF(OR(H98="غ",J98="غ"),"غ",(H98+J98*3)/4) -> غ | L98: 0 | N98: راسب(ة)
A99: 11 | H99: =IF($G99="","غ",VLOOKUP($G99,Module_1!$A$4:$F$47,6)) -> غ | J99: =IF($I99="","غ",VLOOKUP($I99,Module_2!$A$4:$F$47,6)) -> غ | K99: غ | L99: 0 | N99: راسب(ة)
A100: 25 | H100: =IF($G100="","غ",VLOOKUP($G100,Module_1!$A$4:$F$47,6)) -> غ | J100: =IF($I100="","غ",VLOOKUP($I100,Module_2!$A$4:$F$47,6)) -> غ | K100: غ | L100: 0 | N100: راسب(ة)
A101: 2 | H101: =IF($G101="","غ",VLOOKUP($G101,Module_1!$A$4:$F$47,6)) -> غ | J101: =IF($I101="","غ",VLOOKUP($I101,Module_2!$A$4:$F$47,6)) -> غ | K101: غ | L101: 0 | N101: راسب(ة)

Sheet Etape_2
A1: جامعة الحاج لخضر -باتنة01
A2: =Tableau_de_bord!B1 -> قسم : علوم مالية و محاسبة
A4: النتائج النهائية للمسابقة الوطنية للدخول إلى السنة الأولى دكتوراه (LMD)
A6: =Tableau_de_bord!B2 -> تخصص: محاسبة و تدقيق
A7: السنة الجامعية : 2020/2019
A9: النتائج النهائية حسب القرار رقم 547 المورخ في 2016/06/02 - المرحلة النهائية
A11: الترتيب | B11: اللقبـــــــــــ | C11: الإســـــــــــم | D11: نوع | E11: صنف | F11: الجامعة | G11: مقياس 1 | H11: مقياس 2 | I11: المعدل | J11: ملاحظات
D12: الماستر | E12: الترتيب | F12: الأصلية | G12: معامل : 01 | H12: معامل : 03
A13: 1 | B13: =Decodage!B2 -> FATIMA ZOHRA | C13: =Decodage!C2 -> BOULAHBEL | D13: =Decodage!D2 -> 0 | E13: =Decodage!E2 -> 0 | F13: =Decodage!F2 -> 0 | G13: =Decodage!H2 -> 7.625 | H13: =Decodage!J2 -> 9.125 | I13: =Decodage!K2 -> 8.75 | J13: =Decodage!N2 -> ناجح (ة)
A14: 2 | B14: =Decodage!B3 -> labbaz | C14: =Decodage!C3 -> mabrouk | D14: =Decodage!D3 -> 0 | E14: =Decodage!E3 -> 0 | F14: =Decodage!F3 -> 0 | G14: =Decodage!H3 -> 3.125 | H14: =Decodage!J3 -> 10.5 | I14: =Decodage!K3 -> 8.65625 | J14: =Decodage!N3 -> ناجح (ة)
A15: 3 | B15: =Decodage!B4 -> ben azouaou | C15: =Decodage!C4 -> leila | D15: =Decodage!D4 -> 0 | E15: =Decodage!E4 -> 0 | F15: =Decodage!F4 -> 0 | G15: =Decodage!H4 -> 4.5 | H15: =Decodage!J4 -> 9.5 | I15: =Decodage!K4 -> 8.25 | J15: =Decodage!N4 -> ناجح (ة)
A16: 4 | B16: =Decodage!B5 -> Berchi | C16: =Decodage!C5 -> Nardjes | D16: =Decodage!D5 -> 0 | E16: =Decodage!E5 -> 0 | F16: =Decodage!F5 -> 0 | G16: =Decodage!H5 -> 2.25 | H16: =Decodage!J5 -> 9.75 | I16: =Decodage!K5 -> 7.875 | J16: =Decodage!N5 -> راسب(ة)
A17: 5 | B17: =Decodage!B6 -> salaouda | C17: =Decodage!C6 -> khaled | D17: =Decodage!D6 -> 0 | E17: =Decodage!E6 -> 0 | F17: =Decodage!F6 -> 0 | G17: =Decodage!H6 -> 5.375 | H17: =Decodage!J6 -> 8.5 | I17: =Decodage!K6 -> 7.71875 | J17: =Decodage!N6 -> راسب(ة)
A18: 6 | B18: =Decodage!B7 -> saidi | C18: =Decodage!C7 -> sabah | D18: =Decodage!D7 -> 0 | E18: =Decodage!E7 -> 0 | F18: =Decodage!F7 -> 0 | G18: =Decodage!H7 -> 4.125 | H18: =Decodage!J7 -> 8.875 | I18: =Decodage!K7 -> 7.6875 | J18: =Decodage!N7 -> راسب(ة)
A19: 7 | B19: =Decodage!B8 -> boultiah | C19: =Decodage!C8 -> salima | D19: =Decodage!D8 -> 0 | E19: =Decodage!E8 -> 0 | F19: =Decodage!F8 -> 0 | G19: =Decodage!H8 -> 3.125 | H19: =Decodage!J8 -> 8.875 | I19: =Decodage!K8 -> 7.4375 | J19: =Decodage!N8 -> راسب(ة)
A20: 8 | B20: =Decodage!B9 -> djemmal | C20: =Decodage!C9 -> hamza oulid | D20: =Decodage!D9 -> 0 | E20: =Decodage!E9 -> 0 | F20: =Decodage!F9 -> 0 | G20: =Decodage!H9 -> 2.375 | H20: =Decodage!J9 -> 8.75 | I20: =Decodage!K9 -> 7.15625 | J20: =Decodage!N9 -> راسب(ة)
A21: 9 | B21: =Decodage!B10 -> TLALES | C21: =Decodage!C10 -> Azouz | D21: =Decodage!D10 -> 0 | E21: =Decodage!E10 -> 0 | F21: =Decodage!F10 -> 0 | G21: =Decodage!H10 -> 2.75 | H21: =Decodage!J10 -> 8.5 | I21: =Decodage!K10 -> 7.0625 | J21: =Decodage!N10 -> راسب(ة)
A22: 10 | B22: =Decodage!B11 -> Djaroun | C22: =Decodage!C11 -> Sorya | D22: =Decodage!D11 -> 0 | E22: =Decodage!E11 -> 0 | F22: =Decodage!F11 -> 0 | G22: =Decodage!H11 -> 5.625 | H22: =Decodage!J11 -> 7.25 | I22: =Decodage!K11 -> 6.84375 | J22: =Decodage!N11 -> راسب(ة)
A23: 11 | B23: =Decodage!B12 -> bouzidi | C23: =Decodage!C12 -> abdelwahab | D23: =Decodage!D12 -> 0 | E23: =Decodage!E12 -> 0 | F23: =Decodage!F12 -> 0 | G23: =Decodage!H12 -> 2 | H23: =Decodage!J12 -> 8 | I23: =Decodage!K12 -> 6.5 | J23: =Decodage!N12 -> راسب(ة)
A24: 12 | B24: =Decodage!B13 -> Guidoum | C24: =Decodage!C13 -> Aicha | D24: =Decodage!D13 -> 0 | E24: =Decodage!E13 -> 0 | F24: =Decodage!F13 -> 0 | G24: =Decodage!H13 -> 2 | H24: =Decodage!J13 -> 8 | I24: =Decodage!K13 -> 6.5 | J24: =Decodage!N13 -> راسب(ة)
A25: 13 | B25: =Decodage!B14 -> ABIDI | C25: =Decodage!C14 -> IBTISSEM | D25: =Decodage!D14 -> 0 | E25: =Decodage!E14 -> 0 | F25: =Decodage!F14 -> 0 | G25: =Decodage!H14 -> 8.5 | H25: =Decodage!J14 -> 5.625 | I25: =Decodage!K14 -> 6.34375 | J25: =Decodage!N14 -> راسب(ة)
A26: 14 | B26: =Decodage!B15 -> DERRADJI | C26: =Decodage!C15 -> AMEL NOUR EL HOUDA | D26: =Decodage!D15 -> 0 | E26: =Decodage!E15 -> 0 | F26: =Decodage!F15 -> 0 | G26: =Decodage!H15 -> 2 | H26: =Decodage!J15 -> 7.5 | I26: =Decodage!K15 -> 6.125 | J26: =Decodage!N15 -> راسب(ة)
A27: 15 | B27: =Decodage!B16 -> Sadoun | C27: =Decodage!C16 -> Moussa | D27: =Decodage!D16 -> 0 | E27: =Decodage!E16 -> 0 | F27: =Decodage!F16 -> 0 | G27: =Decodage!H16 -> 2.75 | H27: =Decodage!J16 -> 7.25 | I27: =Decodage!K16 -> 6.125 | J27: =Decodage!N16 -> راسب(ة)
A28: 16 | B28: =Decodage!B17 -> guerziz | C28: =Decodage!C17 -> meriem | D28: =Decodage!D17 -> 0 | E28: =Decodage!E17 -> 0 | F28: =Decodage!F17 -> 0 | G28: =Decodage!H17 -> 7.875 | H28: =Decodage!J17 -> 5.375 | I28: =Decodage!K17 -> 6 | J28: =Decodage!N17 -> راسب(ة)
A29: 17 | B29: =Decodage!B18 -> ARIOUA | C29: =Decodage!C18 -> MOHAMED | D29: =Decodage!D18 -> 0 | E29: =Decodage!E18 -> 0 | F29: =Decodage!F18 -> 0 | G29: =Decodage!H18 -> 2.125 | H29: =Decodage!J18 -> 7 | I29: =Decodage!K18 -> 5.78125 | J29: =Decodage!N18 -> راسب(ة)
A30: 18 | B30: =Decodage!B19 -> TALEB | C30: =Decodage!C19 -> ISSAM | D30: =Decodage!D19 -> 0 | E30: =Decodage!E19 -> 0 | F30: =Decodage!F19 -> 0 | G30: =Decodage!H19 -> 2.375 | H30: =Decodage!J19 -> 6.75 | I30: =Decodage!K19 -> 5.65625 | J30: =Decodage!N19 -> راسب(ة)
A31: 19 | B31: =Decodage!B20 -> LITIM | C31: =Decodage!C20 -> IKRAM | D31: =Decodage!D20 -> 0 | E31: =Decodage!E20 -> 0 | F31: =Decodage!F20 -> 0 | G31: =Decodage!H20 -> 2.25 | H31: =Decodage!J20 -> 6.75 | I31: =Decodage!K20 -> 5.625 | J31: =Decodage!N20 -> راسب(ة)
A32: 20 | B32: =Decodage!B21 -> bouchouk | C32: =Decodage!C21 -> noura | D32: =Decodage!D21 -> 0 | E32: =Decodage!E21 -> 0 | F32: =Decodage!F21 -> 0 | G32: =Decodage!H21 -> 2 | H32: =Decodage!J21 -> 6.5 | I32: =Decodage!K21 -> 5.375 | J32: =Decodage!N21 -> راسب(ة)
A33: 21 | B33: =Decodage!B22 -> guemida | C33: =Decodage!C22 -> assia | D33: =Decodage!D22 -> 0 | E33: =Decodage!E22 -> 0 | F33: =Decodage!F22 -> 0 | G33: =Decodage!H22 -> 1.75 | H33: =Decodage!J22 -> 6.5 | I33: =Decodage!K22 -> 5.3125 | J33: =Decodage!N22 -> راسب(ة)
A34: 22 | B34: =Decodage!B23 -> guerfi | C34: =Decodage!C23 -> ilyes | D34: =Decodage!D23 -> 0 | E34: =Decodage!E23 -> 0 | F34: =Decodage!F23 -> 0 | G34: =Decodage!H23 -> 4 | H34: =Decodage!J23 -> 5.75 | I34: =Decodage!K23 -> 5.3125 | J34: =Decodage!N23 -> راسب(ة)
A35: 23 | B35: =Decodage!B24 -> meddour | C35: =Decodage!C24 -> imen | D35: =Decodage!D24 -> 0 | E35: =Decodage!E24 -> 0 | F35: =Decodage!F24 -> 0 | G35: =Decodage!H24 -> 4 | H35: =Decodage!J24 -> 5.625 | I35: =Decodage!K24 -> 5.21875 | J35: =Decodage!N24 -> راسب(ة)
A36: 24 | B36: =Decodage!B25 -> YAHIAOUI | C36: =Decodage!C25 -> Asma | D36: =Decodage!D25 -> 0 | E36: =Decodage!E25 -> 0 | F36: =Decodage!F25 -> 0 | G36: =Decodage!H25 -> 2.5 | H36: =Decodage!J25 -> 6 | I36: =Decodage!K25 -> 5.125 | J36: =Decodage!N25 -> راسب(ة)
A37: 25 | B37: =Decodage!B26 -> bouaziz | C37: =Decodage!C26 -> mouldia | D37: =Decodage!D26 -> 0 | E37: =Decodage!E26 -> 0 | F37: =Decodage!F26 -> 0 | G37: =Decodage!H26 -> 3.75 | H37: =Decodage!J26 -> 5.25 | I37: =Decodage!K26 -> 4.875 | J37: =Decodage!N26 -> راسب(ة)
A38: 26 | B38: =Decodage!B27 -> bassaid | C38: =Decodage!C27 -> hafied | D38: =Decodage!D27 -> 0 | E38: =Decodage!E27 -> 0 | F38: =Decodage!F27 -> 0 | G38: =Decodage!H27 -> 2 | H38: =Decodage!J27 -> 5.5 | I38: =Decodage!K27 -> 4.625 | J38: =Decodage!N27 -> راسب(ة)
A39: 27 | B39: =Decodage!B28 -> AROUL | C39: =Decodage!C28 -> Turkia | D39: =Decodage!D28 -> 0 | E39: =Decodage!E28 -> 0 | F39: =Decodage!F28 -> 0 | G39: =Decodage!H28 -> 0.625 | H39: =Decodage!J28 -> 5.625 | I39: =Decodage!K28 -> 4.375 | J39: =Decodage!N28 -> راسب(ة)
A40: 28 | B40: =Decodage!B29 -> saadi | C40: =Decodage!C29 -> kenza | D40: =Decodage!D29 -> 0 | E40: =Decodage!E29 -> 0 | F40: =Decodage!F29 -> 0 | G40: =Decodage!H29 -> 3.75 | H40: =Decodage!J29 -> 4.5 | I40: =Decodage!K29 -> 4.3125 | J40: =Decodage!N29 -> راسب(ة)
A41: 29 | B41: =Decodage!B30 -> Bellakh | C41: =Decodage!C30 -> Sihem | D41: =Decodage!D30 -> 0 | E41: =Decodage!E30 -> 0 | F41: =Decodage!F30 -> 0 | G41: =Decodage!H30 -> 1.75 | H41: =Decodage!J30 -> 5.125 | I41: =Decodage!K30 -> 4.28125 | J41: =Decodage!N30 -> راسب(ة)
A42: 30 | B42: =Decodage!B31 -> zeyneb | C42: =Decodage!C31 -> tamrabet | D42: =Decodage!D31 -> 0 | E42: =Decodage!E31 -> 0 | F42: =Decodage!F31 -> 0 | G42: =Decodage!H31 -> 1.875 | H42: =Decodage!J31 -> 4.875 | I42: =Decodage!K31 -> 4.125 | J42: =Decodage!N31 -> راسب(ة)
A43: 31 | B43: =Decodage!B32 -> kebab | C43: =Decodage!C32 -> ghania | D43: =Decodage!D32 -> 0 | E43: =Decodage!E32 -> 0 | F43: =Decodage!F32 -> 0 | G43: =Decodage!H32 -> 1.5 | H43: =Decodage!J32 -> 4.875 | I43: =Decodage!K32 -> 4.03125 | J43: =Decodage!N32 -> راسب(ة)
A44: 32 | B44: =Decodage!B33 -> maalem | C44: =Decodage!C33 -> abir | D44: =Decodage!D33 -> 0 | E44: =Decodage!E33 -> 0 | F44: =Decodage!F33 -> 0 | G44: =Decodage!H33 -> 1.25 | H44: =Decodage!J33 -> 4.75 | I44: =Decodage!K33 -> 3.875 | J44: =Decodage!N33 -> راسب(ة)
A45: 33 | B45: =Decodage!B34 -> djelal | C45: =Decodage!C34 -> lamis | D45: =Decodage!D34 -> 0 | E45: =Decodage!E34 -> 0 | F45: =Decodage!F34 -> 0 | G45: =Decodage!H34 -> 3.75 | H45: =Decodage!J34 -> 3.75 | I45: =Decodage!K34 -> 3.75 | J45: =Decodage!N34 -> راسب(ة)
A46: 34 | B46: =Decodage!B35 -> DERDOUBA | C46: =Decodage!C35 -> ABDELHAK | D46: =Decodage!D35 -> 0 | E46: =Decodage!E35 -> 0 | F46: =Decodage!F35 -> 0 | G46: =Decodage!H35 -> 2.625 | H46: =Decodage!J35 -> 3.75 | I46: =Decodage!K35 -> 3.46875 | J46: =Decodage!N35 -> راسب(ة)
A47: 35 | B47: =Decodage!B36 -> bouradi | C47: =Decodage!C36 -> maroua | D47: =Decodage!D36 -> 0 | E47: =Decodage!E36 -> 0 | F47: =Decodage!F36 -> 0 | G47: =Decodage!H36 -> 1.875 | H47: =Decodage!J36 -> 3.75 | I47: =Decodage!K36 -> 3.28125 | J47: =Decodage!N36 -> راسب(ة)
A48: 36 | B48: =Decodage!B37 -> ATHAMNIA | C48: =Decodage!C37 -> Abd El Azize | D48: =Decodage!D37 -> 0 | E48: =Decodage!E37 -> 0 | F48: =Decodage!F37 -> 0 | G48: =Decodage!H37 -> 2.5 | H48: =Decodage!J37 -> 3 | I48: =Decodage!K37 -> 2.875 | J48: =Decodage!N37 -> راسب(ة)
A49: 37 | B49: =Decodage!B38 -> BEKIRI | C49: =Decodage!C38 -> HADJER | D49: =Decodage!D38 -> 0 | E49: =Decodage!E38 -> 0 | F49: =Decodage!F38 -> 0 | G49: =Decodage!H38 -> 3 | H49: =Decodage!J38 -> 2.625 | I49: =Decodage!K38 -> 2.71875 | J49: =Decodage!N38 -> راسب(ة)
A50: 38 | B50: =Decodage!B39 -> BENABBES | C50: =Decodage!C39 -> RAYENE | D50: =Decodage!D39 -> 0 | E50: =Decodage!E39 -> 0 | F50: =Decodage!F39 -> 0 | G50: =Decodage!H39 -> 1.125 | H50: =Decodage!J39 -> 3.125 | I50: =Decodage!K39 -> 2.625 | J50: =Decodage!N39 -> راسب(ة)
A51: 39 | B51: =Decodage!B40 -> BOUDJELAL | C51: =Decodage!C40 -> MOUNA | D51: =Decodage!D40 -> 0 | E51: =Decodage!E40 -> 0 | F51: =Decodage!F40 -> 0 | G51: =Decodage!H40 -> 1.5 | H51: =Decodage!J40 -> 3 | I51: =Decodage!K40 -> 2.625 | J51: =Decodage!N40 -> راسب(ة)
A52: 40 | B52: =Decodage!B41 -> kharfallah cherif | C52: =Decodage!C41 -> naima | D52: =Decodage!D41 -> 0 | E52: =Decodage!E41 -> 0 | F52: =Decodage!F41 -> 0 | G52: =Decodage!H41 -> 1.5 | H52: =Decodage!J41 -> 3 | I52: =Decodage!K41 -> 2.625 | J52: =Decodage!N41 -> راسب(ة)
A53: 41 | B53: =Decodage!B42 -> bedda | C53: =Decodage!C42 -> rokn eddine | D53: =Decodage!D42 -> 0 | E53: =Decodage!E42 -> 0 | F53: =Decodage!F42 -> 0 | G53: =Decodage!H42 -> 2 | H53: =Decodage!J42 -> 2.625 | I53: =Decodage!K42 -> 2.46875 | J53: =Decodage!N42 -> راسب(ة)
A54: 42 | B54: =Decodage!B43 -> BOUTAMAMINE | C54: =Decodage!C43 -> MEBARKA | D54: =Decodage!D43 -> 0 | E54: =Decodage!E43 -> 0 | F54: =Decodage!F43 -> 0 | G54: =Decodage!H43 -> 1.25 | H54: =Decodage!J43 -> 2.25 | I54: =Decodage!K43 -> 2 | J54: =Decodage!N43 -> راسب(ة)
A55: 43 | B55: =Decodage!B44 -> touatit | C55: =Decodage!C44 -> nesma | D55: =Decodage!D44 -> 0 | E55: =Decodage!E44 -> 0 | F55: =Decodage!F44 -> 0 | G55: =Decodage!H44 -> 0.5 | H55: =Decodage!J44 -> 1.25 | I55: =Decodage!K44 -> 1.0625 | J55: =Decodage!N44 -> راسب(ة)
A56: 44 | B56: =Decodage!B45 -> adjmi | C56: =Decodage!C45 -> zineb | D56: =Decodage!D45 -> 0 | E56: =Decodage!E45 -> 0 | F56: =Decodage!F45 -> 0 | G56: =Decodage!H45 -> غ | H56: =Decodage!J45 -> غ | I56: =Decodage!K45 -> غ | J56: =Decodage!N45 -> راسب(ة)
A57: 45 | B57: =Decodage!B46 -> ARAB | C57: =Decodage!C46 -> Amira | D57: =Decodage!D46 -> 0 | E57: =Decodage!E46 -> 0 | F57: =Decodage!F46 -> 0 | G57: =Decodage!H46 -> غ | H57: =Decodage!J46 -> غ | I57: =Decodage!K46 -> غ | J57: =Decodage!N46 -> راسب(ة)
A58: 46 | B58: =Decodage!B47 -> ATTALLAH | C58: =Decodage!C47 -> YAKOUB | D58: =Decodage!D47 -> 0 | E58: =Decodage!E47 -> 0 | F58: =Decodage!F47 -> 0 | G58: =Decodage!H47 -> غ | H58: =Decodage!J47 -> غ | I58: =Decodage!K47 -> غ | J58: =Decodage!N47 -> راسب(ة)
A59: 47 | B59: =Decodage!B48 -> Bech | C59: =Decodage!C48 -> Abderrahmane | D59: =Decodage!D48 -> 0 | E59: =Decodage!E48 -> 0 | F59: =Decodage!F48 -> 0 | G59: =Decodage!H48 -> غ | H59: =Decodage!J48 -> غ | I59: =Decodage!K48 -> غ | J59: =Decodage!N48 -> راسب(ة)
A60: 48 | B60: =Decodage!B49 -> Belkacemi | C60: =Decodage!C49 -> Mounira | D60: =Decodage!D49 -> 0 | E60: =Decodage!E49 -> 0 | F60: =Decodage!F49 -> 0 | G60: =Decodage!H49 -> غ | H60: =Decodage!J49 -> غ | I60: =Decodage!K49 -> غ | J60: =Decodage!N49 -> راسب(ة)
A61: 49 | B61: =Decodage!B50 -> belkhiri | C61: =Decodage!C50 -> aida | D61: =Decodage!D50 -> 0 | E61: =Decodage!E50 -> 0 | F61: =Decodage!F50 -> 0 | G61: =Decodage!H50 -> غ | H61: =Decodage!J50 -> غ | I61: =Decodage!K50 -> غ | J61: =Decodage!N50 -> راسب(ة)
A62: 50 | B62: =Decodage!B51 -> belloum | C62: =Decodage!C51 -> imene | D62: =Decodage!D51 -> 0 | E62: =Decodage!E51 -> 0 | F62: =Decodage!F51 -> 0 | G62: =Decodage!H51 -> غ | H62: =Decodage!J51 -> غ | I62: =Decodage!K51 -> غ | J62: =Decodage!N51 -> راسب(ة)
A63: 51 | B63: =Decodage!B52 -> Belloum | C63: =Decodage!C52 -> Nadir | D63: =Decodage!D52 -> 0 | E63: =Decodage!E52 -> 0 | F63: =Decodage!F52 -> 0 | G63: =Decodage!H52 -> غ | H63: =Decodage!J52 -> غ | I63: =Decodage!K52 -> غ | J63: =Decodage!N52 -> راسب(ة)
A64: 52 | B64: =Decodage!B53 -> BENKORICHI | C64: =Decodage!C53 -> ZAKARIA | D64: =Decodage!D53 -> 0 | E64: =Decodage!E53 -> 0 | F64: =Decodage!F53 -> 0 | G64: =Decodage!H53 -> غ | H64: =Decodage!J53 -> غ | I64: =Decodage!K53 -> غ | J64: =Decodage!N53 -> راسب(ة)
A65: 53 | B65: =Decodage!B54 -> BENTALLAH | C65: =Decodage!C54 -> Athmane | D65: =Decodage!D54 -> 0 | E65: =Decodage!E54 -> 0 | F65: =Decodage!F54 -> 0 | G65: =Decodage!H54 -> غ | H65: =Decodage!J54 -> غ | I65: =Decodage!K54 -> غ | J65: =Decodage!N54 -> راسب(ة)
A66: 54 | B66: =Decodage!B55 -> Boubaya | C66: =Decodage!C55 -> Nassira | D66: =Decodage!D55 -> 0 | E66: =Decodage!E55 -> 0 | F66: =Decodage!F55 -> 0 | G66: =Decodage!H55 -> غ | H66: =Decodage!J55 -> غ | I66: =Decodage!K55 -> غ | J66: =Decodage!N55 -> راسب(ة)
A67: 55 | B67: =Decodage!B56 -> bouchama | C67: =Decodage!C56 -> sadek | D67: =Decodage!D56 -> 0 | E67: =Decodage!E56 -> 0 | F67: =Decodage!F56 -> 0 | G67: =Decodage!H56 -> غ | H67: =Decodage!J56 -> غ | I67: =Decodage!K56 -> غ | J67: =Decodage!N56 -> راسب(ة)
A68: 56 | B68: =Decodage!B57 -> BOUZEKRI | C68: =Decodage!C57 -> SADEK | D68: =Decodage!D57 -> 0 | E68: =Decodage!E57 -> 0 | F68: =Decodage!F57 -> 0 | G68: =Decodage!H57 -> غ | H68: =Decodage!J57 -> غ | I68: =Decodage!K57 -> غ | J68: =Decodage!N57 -> راسب(ة)
A69: 57 | B69: =Decodage!B58 -> CHABANI | C69: =Decodage!C58 -> MEHDI | D69: =Decodage!D58 -> 0 | E69: =Decodage!E58 -> 0 | F69: =Decodage!F58 -> 0 | G69: =Decodage!H58 -> غ | H69: =Decodage!J58 -> غ | I69: =Decodage!K58 -> غ | J69: =Decodage!N58 -> راسب(ة)
A70: 58 | B70: =Decodage!B59 -> chebili | C70: =Decodage!C59 -> khalissa | D70: =Decodage!D59 -> 0 | E70: =Decodage!E59 -> 0 | F70: =Decodage!F59 -> 0 | G70: =Decodage!H59 -> غ | H70: =Decodage!J59 -> غ | I70: =Decodage!K59 -> غ | J70: =Decodage!N59 -> راسب(ة)
A71: 59 | B71: =Decodage!B60 -> chekhab | C71: =Decodage!C60 -> sara | D71: =Decodage!D60 -> 0 | E71: =Decodage!E60 -> 0 | F71: =Decodage!F60 -> 0 | G71: =Decodage!H60 -> 1.75 | H71: ورقة ملغاة | I71: =Decodage!K60 -> غ | J71: =Decodage!N60 -> راسب(ة)
A72: 60 | B72: =Decodage!B61 -> cheriti | C72: =Decodage!C61 -> ines lilia | D72: =Decodage!D61 -> 0 | E72: =Decodage!E61 -> 0 | F72: =Decodage!F61 -> 0 | G72: =Decodage!H61 -> غ | H72: =Decodage!J61 -> غ | I72: =Decodage!K61 -> غ | J72: =Decodage!N61 -> راسب(ة)
A73: 61 | B73: =Decodage!B62 -> DJEBAILI | C73: =Decodage!C62 -> Nadhira | D73: =Decodage!D62 -> 0 | E73: =Decodage!E62 -> 0 | F73: =Decodage!F62 -> 0 | G73: =Decodage!H62 -> غ | H73: =Decodage!J62 -> غ | I73: =Decodage!K62 -> غ | J73: =Decodage!N62 -> راسب(ة)
A74: 62 | B74: =Decodage!B63 -> djefaflia | C74: =Decodage!C63 -> roumaissa | D74: =Decodage!D63 -> 0 | E74: =Decodage!E63 -> 0 | F74: =Decodage!F63 -> 0 | G74: =Decodage!H63 -> غ | H74: =Decodage!J63 -> غ | I74: =Decodage!K63 -> غ | J74: =Decodage!N63 -> راسب(ة)
A75: 63 | B75: =Decodage!B64 -> FILALI | C75: =Decodage!C64 -> HAMZA | D75: =Decodage!D64 -> 0 | E75: =Decodage!E64 -> 0 | F75: =Decodage!F64 -> 0 | G75: =Decodage!H64 -> غ | H75: =Decodage!J64 -> غ | I75: =Decodage!K64 -> غ | J75: =Decodage!N64 -> راسب(ة)
A76: 64 | B76: =Decodage!B65 -> GHERIB | C76: =Decodage!C65 -> HANANE | D76: =Decodage!D65 -> 0 | E76: =Decodage!E65 -> 0 | F76: =Decodage!F65 -> 0 | G76: =Decodage!H65 -> غ | H76: =Decodage!J65 -> غ | I76: =Decodage!K65 -> غ | J76: =Decodage!N65 -> راسب(ة)
A77: 65 | B77: =Decodage!B66 -> GRINI | C77: =Decodage!C66 -> AMEL | D77: =Decodage!D66 -> 0 | E77: =Decodage!E66 -> 0 | F77: =Decodage!F66 -> 0 | G77: =Decodage!H66 -> غ | H77: =Decodage!J66 -> غ | I77: =Decodage!K66 -> غ | J77: =Decodage!N66 -> راسب(ة)
A78: 66 | B78: =Decodage!B67 -> khamra | C78: =Decodage!C67 -> hocine | D78: =Decodage!D67 -> 0 | E78: =Decodage!E67 -> 0 | F78: =Decodage!F67 -> 0 | G78: =Decodage!H67 -> غ | H78: =Decodage!J67 -> غ | I78: =Decodage!K67 -> غ | J78: =Decodage!N67 -> راسب(ة)
A79: 67 | B79: =Decodage!B68 -> lagraa | C79: =Decodage!C68 -> nesrine | D79: =Decodage!D68 -> 0 | E79: =Decodage!E68 -> 0 | F79: =Decodage!F68 -> 0 | G79: =Decodage!H68 -> غ | H79: =Decodage!J68 -> غ | I79: =Decodage!K68 -> غ | J79: =Decodage!N68 -> راسب(ة)
A80: 68 | B80: =Decodage!B69 -> Lahmadi | C80: =Decodage!C69 -> Akram | D80: =Decodage!D69 -> 0 | E80: =Decodage!E69 -> 0 | F80: =Decodage!F69 -> 0 | G80: =Decodage!H69 -> غ | H80: =Decodage!J69 -> غ | I80: =Decodage!K69 -> غ | J80: =Decodage!N69 -> راسب(ة)
A81: 69 | B81: =Decodage!B70 -> LATTOUI | C81: =Decodage!C70 -> Hakim | D81: =Decodage!D70 -> 0 | E81: =Decodage!E70 -> 0 | F81: =Decodage!F70 -> 0 | G81: =Decodage!H70 -> غ | H81: =Decodage!J70 -> غ | I81: =Decodage!K70 -> غ | J81: =Decodage!N70 -> راسب(ة)
A82: 70 | B82: =Decodage!B71 -> MAALLA | C82: =Decodage!C71 -> HANANE | D82: =Decodage!D71 -> 0 | E82: =Decodage!E71 -> 0 | F82: =Decodage!F71 -> 0 | G82: =Decodage!H71 -> غ | H82: =Decodage!J71 -> غ | I82: =Decodage!K71 -> غ | J82: =Decodage!N71 -> راسب(ة)
A83: 71 | B83: =Decodage!B72 -> mahdid | C83: =Decodage!C72 -> aziez | D83: =Decodage!D72 -> 0 | E83: =Decodage!E72 -> 0 | F83: =Decodage!F72 -> 0 | G83: =Decodage!H72 -> غ | H83: =Decodage!J72 -> غ | I83: =Decodage!K72 -> غ | J83: =Decodage!N72 -> راسب(ة)
A84: 72 | B84: =Decodage!B73 -> Mahmel | C84: =Decodage!C73 -> Hassiba | D84: =Decodage!D73 -> 0 | E84: =Decodage!E73 -> 0 | F84: =Decodage!F73 -> 0 | G84: =Decodage!H73 -> غ | H84: =Decodage!J73 -> غ | I84: =Decodage!K73 -> غ | J84: =Decodage!N73 -> راسب(ة)
A85: 73 | B85: =Decodage!B74 -> MELIZI | C85: =Decodage!C74 -> HASNA | D85: =Decodage!D74 -> 0 | E85: =Decodage!E74 -> 0 | F85: =Decodage!F74 -> 0 | G85: =Decodage!H74 -> غ | H85: =Decodage!J74 -> غ | I85: =Decodage!K74 -> غ | J85: =Decodage!N74 -> راسب(ة)
A86: 74 | B86: =Decodage!B75 -> mestour | C86: =Decodage!C75 -> nadjet | D86: =Decodage!D75 -> 0 | E86: =Decodage!E75 -> 0 | F86: =Decodage!F75 -> 0 | G86: =Decodage!H75 -> غ | H86: =Decodage!J75 -> غ | I86: =Decodage!K75 -> غ | J86: =Decodage!N75 -> راسب(ة)
A87: 75 | B87: =Decodage!B76 -> midoune | C87: =Decodage!C76 -> nihad | D87: =Decodage!D76 -> 0 | E87: =Decodage!E76 -> 0 | F87: =Decodage!F76 -> 0 | G87: =Decodage!H76 -> غ | H87: =Decodage!J76 -> غ | I87: =Decodage!K76 -> غ | J87: =Decodage!N76 -> راسب(ة)
A88: 76 | B88: =Decodage!B77 -> OMRANE | C88: =Decodage!C77 -> SOUMIA | D88: =Decodage!D77 -> 0 | E88: =Decodage!E77 -> 0 | F88: =Decodage!F77 -> 0 | G88: =Decodage!H77 -> غ | H88: =Decodage!J77 -> غ | I88: =Decodage!K77 -> غ | J88: =Decodage!N77 -> راسب(ة)
A89: 77 | B89: =Decodage!B78 -> ounis | C89: =Decodage!C78 -> dellel | D89: =Decodage!D78 -> 0 | E89: =Decodage!E78 -> 0 | F89: =Decodage!F78 -> 0 | G89: =Decodage!H78 -> غ | H89: =Decodage!J78 -> غ | I89: =Decodage!K78 -> غ | J89: =Decodage!N78 -> راسب(ة)
A90: 78 | B90: =Decodage!B79 -> RAHAL | C90: =Decodage!C79 -> ISMAHAN | D90: =Decodage!D79 -> 0 | E90: =Decodage!E79 -> 0 | F90: =Decodage!F79 -> 0 | G90: =Decodage!H79 -> غ | H90: =Decodage!J79 -> غ | I90: =Decodage!K79 -> غ | J90: =Decodage!N79 -> راسب(ة)
A91: 79 | B91: =Decodage!B80 -> RAHIM | C91: =Decodage!C80 -> Imene | D91: =Decodage!D80 -> 0 | E91: =Decodage!E80 -> 0 | F91: =Decodage!F80 -> 0 | G91: =Decodage!H80 -> غ | H91: =Decodage!J80 -> غ | I91: =Decodage!K80 -> غ | J91: =Decodage!N80 -> راسب(ة)
A92: 80 | B92: =Decodage!B81 -> saoud | C92: =Decodage!C81 -> imene | D92: =Decodage!D81 -> 0 | E92: =Decodage!E81 -> 0 | F92: =Decodage!F81 -> 0 | G92: =Decodage!H81 -> غ | H92: =Decodage!J81 -> غ | I92: =Decodage!K81 -> غ | J92: =Decodage!N81 -> راسب(ة)
A93: 81 | B93: =Decodage!B82 -> Souilah | C93: =Decodage!C82 -> Oumeima | D93: =Decodage!D82 -> 0 | E93: =Decodage!E82 -> 0 | F93: =Decodage!F82 -> 0 | G93: =Decodage!H82 -> غ | H93: =Decodage!J82 -> غ | I93: =Decodage!K82 -> غ | J93: =Decodage!N82 -> راسب(ة)
A94: 82 | B94: =Decodage!B83 -> TEDJANIA | C94: =Decodage!C83 -> HAMZA | D94: =Decodage!D83 -> 0 | E94: =Decodage!E83 -> 0 | F94: =Decodage!F83 -> 0 | G94: =Decodage!H83 -> غ | H94: =Decodage!J83 -> غ | I94: =Decodage!K83 -> غ | J94: =Decodage!N83 -> راسب(ة)
A95: 83 | B95: =Decodage!B84 -> ZENNOUR | C95: =Decodage!C84 -> Abdelaziz | D95: =Decodage!D84 -> 0 | E95: =Decodage!E84 -> 0 | F95: =Decodage!F84 -> 0 | G95: =Decodage!H84 -> غ | H95: =Decodage!J84 -> غ | I95: =Decodage!K84 -> غ | J95: =Decodage!N84 -> راسب(ة)
A96: 84 | B96: =Decodage!B85 -> ZIANE | C96: =Decodage!C85 -> FATEH | D96: =Decodage!D85 -> 0 | E96: =Decodage!E85 -> 0 | F96: =Decodage!F85 -> 0 | G96: =Decodage!H85 -> غ | H96: =Decodage!J85 -> غ | I96: =Decodage!K85 -> غ | J96: =Decodage!N85 -> راسب(ة)
A98: =Tableau_de_bord!B19 -> مقياس 1 : محاسبة مالية معمقة
A99: =Tableau_de_bord!B20 -> مقياس 2 : تدقيق محاسبي | G99: مسؤول لجنة التكوين في الدكتوراه
A101: أعضاء لجنة التكوين في الدكتوراه | D101: الإمضــــــــــــــاء | G101: =Tableau_de_bord!B3 -> د/ فنغور عبدالسلام
A102: =Tableau_de_bord!B4 -> د/ رحال علي
A103: =Tableau_de_bord!B5 -> د/ يحياوي نعيمة
A104: =Tableau_de_bord!B6 -> د/ عبدالصمد نجوى
A105: =Tableau_de_bord!B7 -> د/ سي محمد لخضر
A106: =Tableau_de_bord!B11 -> د/ بروال بومدين
A107: =Tableau_de_bord!B12 -> د/ عيساني عامر
A109: رئيس اللجنة العلمية | G109: رئيس القسم
A110: =Tableau_de_bord!B13 -> د/ خدومة الوردي | G110: =Tableau_de_bord!B15 -> د/ لوشن محمد
A119: نائب العميد المكلف بما بعد التدرج و البحث العلمي | G119: رئيس المجلس العلمي للكلية
A120: و العلاقات الخارجية | G120: =Tableau_de_bord!B14 -> د/ زموري مسعود
A121: =Tableau_de_bord!B16 -> د/ بوعبيد ميلود
A127: عميـــــــــــــــــــد الكلية | G127: نائب مديرالجامعة للتكوين العالي في الطور الثالث
A128: =Tableau_de_bord!B17 -> د/ هارون الطاهر | G128: و التأهيل الجامعي و البحث العلمي
G129: و التكوين العالي فيما بعد التدرج
A138: =Tableau_de_bord!B22 -> باتنة في02 نوفمبر2019

Sheet parametrage
A1: NOM | B1: Mot de passe | C1: Parametrage | D1: Feuil1 | E1: Tableau_de_bord | F1: Module_1 | G1: Module_2 | H1: Decodage | I1: Etape_2
A2: 111 | B2: 111 | C2: x | D2: x | E2: x | F2: x | G2: x | H2: x | I2: x
A3: 111 | B3: 111 | C3: x | D3: x | E3: x | F3: x | G3: x | H3: x | I3: x
